[Event "POL-chT DMP Ekstraliga 2019"]
[Site "Katowice"]
[Date "2019.09.02"]
[Round "6.12"]
[White "Antolak, Julia"]
[Black "Buksa, Nataliya"]
[Result "0-1"]
[ECO "C83"]
[WhiteElo "2240"]
[BlackElo "2406"]
[Annotator "NA"]
[PlyCount "68"]
[EventDate "2019.08.28"]
[EventType "team-tourn"]
[EventCountry "POL"]
[SourceTitle "playchess.com"]
[Source "ChessBase"]
[SourceQuality "1"]
[TimeControl "40/5400+30:1800+30"]

1. e4 {[%emt 0:00:00]} e5 {[%emt 0:00:00]} 2. Nf3 {[%emt 0:00:00]} Nc6 {[%emt 0:00:00]} 3. Bb5 {[%emt 0:00:00]} a6 {[%emt 0:00:00]} 4. Ba4 {[%emt 0:00:00]} Nf6 {[%emt 0:00:00]} 5. O-O {[%emt 0:00:04]} Nxe4 {[%emt 0:00:00]} 6. d4 {[%emt 0:01:05]} b5 {[%emt 0:00:00]} 7. Bb3 {[%emt 0:00:06]} d5 {[%emt 0:00:00]} 8. dxe5 {[%emt 0:00:17]} Be6 {[%emt 0:00:00]} 9. c3 {[%emt 0:01:07]} Be7 {[%emt 0:00:20]} 10. Be3 {[%emt 0:00:26]} Nc5 {[%emt 0:00:18]} 11. Bxc5 {[%emt 0:16:14]} Bxc5 {[%emt 0:00:04]} 12. Nd4 {[%emt 0:00:19]} Nxe5 {[%emt 0:29:30]} 13. Re1 {[%emt 0:29:09]} Qf6 {[%emt 0:03:05]} 14. Qh5 {[%emt 0:08:15]} Bxd4 {[%emt 0:03:50]} 15. cxd4 {[%emt 0:00:09]} Nd3 {[%emt 0:00:05]} 16. Rxe6+ {[%emt 0:00:14]} Qxe6 {[%emt 0:00:34]} 17. Nc3 {[%emt 0:00:18]} O-O {[%emt 0:16:48]} 18. Qf3 {[%emt 0:15:41]} Nb4 {[%emt 0:00:35]} 19. a3 {[%emt 0:13:41]} Rae8 {[%emt 0:00:04]} 20. Qd1 {[%emt 0:05:52]} Nc6 {[%emt 0:21:47]} 21. Bxd5 {[%emt 0:01:36]} Qf6 {[%emt 0:01:37]} 22. Be4 {[%emt 0:01:32]} Nxd4 {[%emt 0:00:41]} 23. Qd3 {[%emt 0:00:28]} h6 {[%emt 0:00:53]} 24. Rd1 {[%emt 0:00:24]} c5 {[%emt 0:00:11]} 25. b4 {[%emt 0:01:21]} cxb4 {[%emt 0:01:42]} 26. axb4 {[%emt 0:00:05]} Nc6 {[%emt 0:02:30]} 27. Rb1 {[%emt 0:02:01]} Qd4 {[%emt 0:01:20]} 28. Qf3 {[%emt 0:01:18]} Nxb4 {[%emt 0:00:31]} 29. Qf5 {[%emt 0:00:40]} g6 {[%emt 0:00:04]} 30. Qf3 {[%emt 0:00:13]} Na2 {[%emt 0:00:33]} 31. Nd5 {[%emt 0:00:47]} Kg7 {[%emt 0:05:00]} 32. Bc2 {[%emt 0:00:41]} b4 {[%emt 0:01:27]} 33. Rd1 {[%emt 0:01:01]} Nc3 {[%emt 0:00:14]} 34. Nxc3 {[%emt 0:01:12]} Qxc3 {[%emt 0:00:02]} 0-1

[Event "POL-chT DMP Ekstraliga 2019"]
[Site "Katowice"]
[Date "2019.09.02"]
[Round "6.17"]
[White "Miton, Kamil"]
[Black "Czerwonski, Aleksander"]
[Result "1-0"]
[ECO "A04"]
[WhiteElo "2589"]
[BlackElo "2365"]
[Annotator "ChessBase"]
[PlyCount "75"]
[EventDate "2019.08.28"]
[EventType "team-tourn"]
[EventCountry "POL"]
[SourceTitle "playchess.com"]
[Source "ChessBase"]
[SourceQuality "1"]
[TimeControl "40/5400+30:1800+30"]

1. Nf3 {[%emt 0:00:00]} d6 {[%emt 0:00:00]} 2. d4 {[%emt 0:00:26]} Nf6 {[%emt 0:00:00]} 3. c4 {[%emt 0:00:33]} g6 {[%emt 0:00:01]} 4. g3 {[%emt 0:01:20]} Bg7 {[%emt 0:00:20]} 5. Bg2 {[%emt 0:00:08]} O-O {[%emt 0:00:06]} 6. O-O {[%emt 0:00:33]} c5 {[%emt 0:00:37]} 7. dxc5 {[%emt 0:03:59]} dxc5 {[%emt 0:00:35]} 8. Ne5 {[%emt 0:00:10]} Nfd7 {[%emt 0:01:48]} 9. Nd3 {[%emt 0:01:18]} Nc6 {[%emt 0:02:10]} 10. Nc3 {[%emt 0:02:41]} Nde5 {[%emt 0:04:17]} 11. Nxc5 {[%emt 0:31:35]} Nxc4 {[%emt 0:07:08]} 12. Qa4 {[%emt 0:08:18]} Nd6 {[%emt 0:06:15]} 13. Rd1 {[%emt 0:03:25]} Qb6 {[%emt 0:10:38]} 14. Nb3 {[%emt 0:01:41]} Be6 {[%emt 0:18:28]} 15. Be3 {[%emt 0:00:25]} Qc7 {[%emt 0:07:43]} 16. Nc5 {[%emt 0:01:47]} Bc4 {[%emt 0:02:35]} 17. Nxb7 {[%emt 0:11:11]} Qxb7 {[%emt 0:00:28]} 18. Bxc6 {[%emt 0:00:08]} Qxb2 {[%emt 0:02:00]} 19. Bxa8 {[%emt 0:00:15]} Rxa8 {[%emt 0:00:37]} 20. Qc6 {[%emt 0:02:11]} Rf8 {[%emt 0:04:26]} 21. Nd5 {[%emt 0:02:01]} Bxd5 {[%emt 0:01:36]} 22. Qxd5 {[%emt 0:00:07]} Qxe2 {[%emt 0:00:42]} 23. Rac1 {[%emt 0:00:32]} Qa6 {[%emt 0:08:06]} 24. Rc5 {[%emt 0:03:33]} Nf5 {[%emt 0:03:56]} 25. Ra5 {[%emt 0:01:05]} Qe2 {[%emt 0:01:24]} 26. Qd3 {[%emt 0:03:03]} Qg4 {[%emt 0:03:55]} 27. Bxa7 {[%emt 0:01:35]} e5 {[%emt 0:04:16]} 28. f3 {[%emt 0:01:55]} Qb4 {[%emt 0:01:47]} 29. Qa3 {[%emt 0:01:45]} Qb7 {[%emt 0:03:24]} 30. Qb3 {[%emt 0:00:29]} Qc6 {[%emt 0:00:47]} 31. Qd5 {[%emt 0:01:28]} Qc2 {[%emt 0:00:36]} 32. Qb3 {[%emt 0:02:42]} Qc6 {[%emt 0:01:04]} 33. Rc5 {[%emt 0:02:12]} Qa6 {[%emt 0:01:37]} 34. Rc7 {[%emt 0:00:16]} Qe2 {[%emt 0:01:18]} 35. Bc5 {[%emt 0:04:47]} Bh6 {[%emt 0:01:53]} 36. Qd3 {[%emt 0:03:12]} Qxa2 {[%emt 0:00:25]} 37. Bxf8 {[%emt 0:00:45]} Bxf8 {[%emt 0:00:58]} 38. Qd5 {[%emt 0:00:37]} 1-0

[Event "POL-chT DMP Ekstraliga 2019"]
[Site "Katowice"]
[Date "2019.09.02"]
[Round "6.18"]
[White "Cyfka, Karina"]
[Black "Socko, Monika"]
[Result "1/2-1/2"]
[ECO "A57"]
[WhiteElo "2413"]
[BlackElo "2436"]
[Annotator "NA"]
[PlyCount "84"]
[EventDate "2019.08.28"]
[EventType "team-tourn"]
[EventCountry "POL"]
[SourceTitle "playchess.com"]
[Source "ChessBase"]
[SourceQuality "1"]
[TimeControl "40/5400+30:1800+30"]

1. d4 {[%emt 0:00:00]} Nf6 {[%emt 0:00:00]} 2. c4 {[%emt 0:00:00]} c5 {[%emt 0:00:00]} 3. d5 {[%emt 0:00:00]} b5 {[%emt 0:00:00]} 4. cxb5 {[%emt 0:00:07]} a6 {[%emt 0:00:00]} 5. b6 {[%emt 0:00:04]} d6 {[%emt 0:01:23]} 6. Nc3 {[%emt 0:01:36]} Nbd7 {[%emt 0:00:05]} 7. a4 {[%emt 0:05:30]} a5 {[%emt 0:02:59]} 8. e4 {[%emt 0:02:48]} g6 {[%emt 0:05:16]} 9. Nf3 {[%emt 0:07:30]} Bg7 {[%emt 0:02:53]} 10. Bb5 {[%emt 0:04:10]} O-O {[%emt 0:01:43]} 11. O-O {[%emt 0:07:40]} Nxb6 {[%emt 0:02:13]} 12. h3 {[%emt 0:08:36]} Ne8 {[%emt 0:04:50]} 13. Re1 {[%emt 0:05:21]} Nc7 {[%emt 0:04:58]} 14. Bc6 {[%emt 0:00:18]} Rb8 {[%emt 0:01:14]} 15. e5 {[%emt 0:08:05]} Nc4 {[%emt 0:12:35]} 16. exd6 {[%emt 0:03:07]} exd6 {[%emt 0:02:02]} 17. Qe2 {[%emt 0:03:34]} Nb6 {[%emt 0:19:51]} 18. Bg5 {[%emt 0:02:24]} f6 {[%emt 0:00:43]} 19. Bf4 {[%emt 0:03:26]} Ba6 {[%emt 0:00:20]} 20. Qc2 {[%emt 0:05:16]} Nc4 {[%emt 0:06:48]} 21. b3 {[%emt 0:02:05]} Ne5 {[%emt 0:01:49]} 22. Nxe5 {[%emt 0:05:25]} fxe5 {[%emt 0:01:01]} 23. Be3 {[%emt 0:00:35]} Bc8 {[%emt 0:01:03]} 24. Ne4 {[%emt 0:04:12]} Bf5 {[%emt 0:01:03]} 25. Bd2 {[%emt 0:00:13]} Na6 {[%emt 0:00:53]} 26. Qc4 {[%emt 0:05:19]} Nb4 {[%emt 0:02:12]} 27. Bb5 {[%emt 0:01:18]} Kh8 {[%emt 0:03:50]} 28. Rac1 {[%emt 0:01:17]} Rc8 {[%emt 0:01:56]} 29. Bg5 {[%emt 0:02:09]} Qc7 {[%emt 0:00:12]} 30. Bd2 {[%emt 0:00:38]} Bxe4 {[%emt 0:02:50]} 31. Qxe4 {[%emt 0:01:02]} Qf7 {[%emt 0:01:07]} 32. f3 {[%emt 0:04:25]} Ra8 {[%emt 0:08:27]} 33. Bc4 {[%emt 0:00:30]} Qe7 {[%emt 0:01:13]} 34. Rf1 {[%emt 0:00:57]} Rf7 {[%emt 0:00:58]} 35. Rce1 {[%emt 0:00:34]} Raf8 {[%emt 0:00:51]} 36. Bc1 {[%emt 0:02:06]} Qd8 {[%emt 0:00:42]} 37. Bd2 {[%emt 0:00:37]} Rg8 {[%emt 0:04:02]} 38. Rc1 {[%emt 0:00:34]} Rgf8 {[%emt 0:00:39]} 39. Kh1 {[%emt 0:00:33]} Rf5 {[%emt 0:00:50]} 40. Kg1 {[%emt 0:00:00]} R5f7 {[%emt 0:00:00]} 41. Kh1 {[%emt 0:02:39]} Rf5 {[%emt 0:01:13]} 42. Kg1 {[%emt 0:01:15]} R5f7 1/2-1/2

[Event "POL-chT DMP Ekstraliga 2019"]
[Site "Katowice"]
[Date "2019.09.02"]
[Round "6.21"]
[White "Dziuba, Marcin"]
[Black "Tazbir, Marcin"]
[Result "1/2-1/2"]
[ECO "A05"]
[WhiteElo "2568"]
[BlackElo "2521"]
[Annotator "ChessBase"]
[PlyCount "39"]
[EventDate "2019.08.28"]
[EventType "team-tourn"]
[EventCountry "POL"]
[SourceTitle "playchess.com"]
[Source "ChessBase"]
[SourceQuality "1"]
[TimeControl "40/5400+30:1800+30"]

1. Nf3 {[%emt 0:00:00]} Nf6 {[%emt 0:00:00]} 2. g3 {[%emt 0:00:00]} b5 {[%emt 0:04:46]} 3. Bg2 {[%emt 0:00:17]} Bb7 {[%emt 0:00:14]} 4. O-O {[%emt 0:00:36]} e6 {[%emt 0:01:03]} 5. b3 {[%emt 0:04:27]} Be7 {[%emt 0:03:06]} 6. c4 {[%emt 0:01:14]} a6 {[%emt 0:00:39]} 7. d3 {[%emt 0:09:55]} d5 {[%emt 0:03:04]} 8. Nbd2 {[%emt 0:03:32]} O-O {[%emt 0:01:04]} 9. Bb2 {[%emt 0:09:15]} c5 {[%emt 0:01:50]} 10. cxd5 {[%emt 0:05:43]} Nxd5 {[%emt 0:02:49]} 11. Qc2 {[%emt 0:11:40]} Nd7 {[%emt 0:01:49]} 12. Rfc1 {[%emt 0:00:12]} Rc8 {[%emt 0:02:17]} 13. Ne4 {[%emt 0:05:29]} Qb6 {[%emt 0:04:44]} 14. Qd2 {[%emt 0:13:18]} Rfd8 {[%emt 0:03:15]} 15. a3 {[%emt 0:04:46]} h6 {[%emt 0:03:09]} 16. Nc3 {[%emt 0:04:47]} Bf6 {[%emt 0:07:35]} 17. Nxd5 {[%emt 0:08:17]} Bxd5 {[%emt 0:05:46]} 18. Bxf6 {[%emt 0:01:41]} Nxf6 {[%emt 0:01:13]} 19. Qb2 {[%emt 0:00:31]} Rc7 {[%emt 0:02:09]} 20. Rc2 {[%emt 0:00:20]} 1/2-1/2

[Event "POL-chT DMP Ekstraliga 2019"]
[Site "Katowice"]
[Date "2019.09.02"]
[Round "6.22"]
[White "Sadzikowski, Daniel"]
[Black "Michalik, Peter"]
[Result "0-1"]
[ECO "D11"]
[WhiteElo "2502"]
[BlackElo "2573"]
[Annotator "ChessBase"]
[PlyCount "86"]
[EventDate "2019.08.28"]
[EventType "team-tourn"]
[EventCountry "POL"]
[SourceTitle "playchess.com"]
[Source "ChessBase"]
[SourceQuality "1"]
[TimeControl "40/5400+30:1800+30"]

1. d4 {[%emt 0:00:00]} d5 {[%emt 0:00:04]} 2. c4 {[%emt 0:00:00]} c6 {[%emt 0:00:05]} 3. Nf3 {[%emt 0:00:23]} Nf6 {[%emt 0:00:08]} 4. e3 {[%emt 0:00:09]} Bg4 {[%emt 0:00:21]} 5. Qb3 {[%emt 0:00:43]} Qb6 {[%emt 0:00:30]} 6. Ne5 {[%emt 0:00:06]} Bh5 {[%emt 0:00:58]} 7. Qxb6 {[%emt 0:29:36]} axb6 {[%emt 0:00:07]} 8. cxd5 {[%emt 0:00:09]} Nxd5 {[%emt 0:00:07]} 9. g4 {[%emt 0:00:06]} Bg6 {[%emt 0:00:23]} 10. Nxg6 {[%emt 0:00:43]} hxg6 {[%emt 0:00:08]} 11. Nc3 {[%emt 0:00:16]} e6 {[%emt 0:00:56]} 12. Bd2 {[%emt 0:03:14]} Nd7 {[%emt 0:00:14]} 13. Nxd5 {[%emt 0:17:45]} exd5 {[%emt 0:05:58]} 14. Bd3 {[%emt 0:02:34]} b5 {[%emt 0:01:32]} 15. Ke2 {[%emt 0:03:46]} Nb6 {[%emt 0:00:23]} 16. a3 {[%emt 0:00:56]} g5 {[%emt 0:02:53]} 17. h3 {[%emt 0:05:31]} Be7 {[%emt 0:00:15]} 18. Rae1 {[%emt 0:02:59]} Kd7 {[%emt 0:02:58]} 19. Kd1 {[%emt 0:00:34]} Rh6 {[%emt 0:02:12]} 20. Bf1 {[%emt 0:00:18]} Rf6 {[%emt 0:04:57]} 21. Re2 {[%emt 0:03:03]} Nc4 {[%emt 0:03:03]} 22. Bc3 {[%emt 0:01:27]} b4 {[%emt 0:01:50]} 23. Bxb4 {[%emt 0:04:50]} Bxb4 {[%emt 0:01:00]} 24. axb4 {[%emt 0:00:02]} Ra1+ {[%emt 0:00:15]} 25. Kc2 {[%emt 0:00:01]} Nxe3+ {[%emt 0:00:36]} 26. fxe3 {[%emt 0:00:02]} Rfxf1 {[%emt 0:00:20]} 27. Rxf1 {[%emt 0:01:02]} Rxf1 {[%emt 0:00:06]} 28. b5 {[%emt 0:02:39]} Rf3 {[%emt 0:01:43]} 29. bxc6+ {[%emt 0:02:11]} bxc6 {[%emt 0:00:08]} 30. e4 {[%emt 0:00:32]} dxe4 {[%emt 0:00:33]} 31. Rxe4 {[%emt 0:00:47]} Rxh3 {[%emt 0:00:31]} 32. Re5 {[%emt 0:03:00]} f6 {[%emt 0:00:07]} 33. Ra5 {[%emt 0:00:01]} Rg3 {[%emt 0:07:12]} 34. Ra7+ {[%emt 0:01:03]} Ke6 {[%emt 0:00:04]} 35. Rxg7 {[%emt 0:00:13]} Rxg4 {[%emt 0:00:05]} 36. Kd3 {[%emt 0:00:36]} Rg3+ {[%emt 0:01:52]} 37. Kc4 {[%emt 0:00:08]} g4 {[%emt 0:01:30]} 38. b4 {[%emt 0:02:46]} Rg1 {[%emt 0:00:30]} 39. Kd3 {[%emt 0:00:39]} f5 {[%emt 0:00:32]} 40. Rg8 {[%emt 0:00:00]} g3 {[%emt 0:00:00]} 41. Ke3 {[%emt 0:03:50]} Rf1 {[%emt 0:04:09]} 42. Kd3 {[%emt 0:08:59]} Rf3+ {[%emt 0:02:10]} 43. Kc4 {[%emt 0:00:27]} f4 {[%emt 0:00:06]} 0-1

[Event "POL-chT DMP Ekstraliga 2019"]
[Site "Katowice"]
[Date "2019.09.02"]
[Round "6.23"]
[White "Plat, Vojtech"]
[Black "Wieczorek, Oskar"]
[Result "1-0"]
[ECO "C00"]
[WhiteElo "2561"]
[BlackElo "2497"]
[Annotator "RC"]
[PlyCount "161"]
[EventDate "2019.08.28"]
[EventType "team-tourn"]
[EventCountry "POL"]
[SourceTitle "playchess.com"]
[Source "ChessBase"]
[SourceQuality "1"]
[TimeControl "40/5400+30:1800+30"]

1. e4 {[%emt 0:00:00]} e6 {[%emt 0:00:00]} 2. d3 {[%emt 0:00:00]} c5 {[%emt 0:00:10]} 3. g3 {[%emt 0:00:04]} Nc6 {[%emt 0:00:32]} 4. Bg2 {[%emt 0:00:06]} d5 {[%emt 0:00:09]} 5. exd5 {[%emt 0:00:35]} exd5 {[%emt 0:00:08]} 6. Ne2 {[%emt 0:00:04]} Nf6 {[%emt 0:01:47]} 7. O-O {[%emt 0:00:13]} Be7 {[%emt 0:01:19]} 8. Bg5 {[%emt 0:04:25]} O-O {[%emt 0:02:02]} 9. Nf4 {[%emt 0:02:49]} Bg4 {[%emt 0:18:17]} 10. Qc1 {[%emt 0:01:24]} d4 {[%emt 0:20:40]} 11. Nd2 {[%emt 0:04:19]} h6 {[%emt 0:03:45]} 12. Bxf6 {[%emt 0:00:06]} Bxf6 {[%emt 0:00:06]} 13. h3 {[%emt 0:06:06]} Bd7 {[%emt 0:02:41]} 14. Nc4 {[%emt 0:06:12]} Rb8 {[%emt 0:05:06]} 15. Re1 {[%emt 0:04:10]} Re8 {[%emt 0:08:45]} 16. Rxe8+ {[%emt 0:01:43]} Bxe8 {[%emt 0:01:21]} 17. Qd1 {[%emt 0:00:22]} b5 {[%emt 0:04:26]} 18. Nd2 {[%emt 0:00:05]} Be5 {[%emt 0:01:58]} 19. Nd5 {[%emt 0:01:11]} Nb4 {[%emt 0:06:24]} 20. Qe2 {[%emt 0:02:06]} Bd6 {[%emt 0:01:09]} 21. Nxb4 {[%emt 0:00:09]} cxb4 {[%emt 0:00:03]} 22. Re1 {[%emt 0:01:51]} Bf8 {[%emt 0:02:45]} 23. Nb3 {[%emt 0:05:34]} g6 {[%emt 0:06:37]} 24. h4 {[%emt 0:23:05]} Qd6 {[%emt 0:04:45]} 25. Qe5 {[%emt 0:04:16]} Qxe5 {[%emt 0:01:11]} 26. Rxe5 {[%emt 0:00:01]} Rc8 {[%emt 0:04:16]} 27. Bh3 {[%emt 0:05:29]} Rd8 {[%emt 0:01:57]} 28. Na5 {[%emt 0:00:45]} Bd6 {[%emt 0:00:45]} 29. Re2 {[%emt 0:01:44]} Bc7 {[%emt 0:00:32]} 30. Nb7 {[%emt 0:00:07]} Rb8 {[%emt 0:00:14]} 31. Nc5 {[%emt 0:00:05]} Bd6 {[%emt 0:01:03]} 32. Nb3 {[%emt 0:01:25]} Bf8 {[%emt 0:00:13]} 33. h5 {[%emt 0:01:17]} gxh5 {[%emt 0:00:43]} 34. Re5 {[%emt 0:02:08]} Rd8 {[%emt 0:00:32]} 35. Rxh5 {[%emt 0:01:16]} Bc6 {[%emt 0:00:34]} 36. Bg2 {[%emt 0:02:50]} Be8 {[%emt 0:00:08]} 37. Re5 {[%emt 0:00:53]} Rc8 {[%emt 0:00:24]} 38. Bh3 {[%emt 0:00:26]} Rd8 {[%emt 0:00:36]} 39. Re4 {[%emt 0:02:28]} Bg7 {[%emt 0:00:55]} 40. Re7 {[%emt 0:00:00]} a6 {[%emt 0:00:00]} 41. Ra7 {[%emt 0:01:52]} Bc6 {[%emt 0:01:58]} 42. Rxa6 {[%emt 0:05:19]} Bf3 {[%emt 0:00:01]} 43. Bg2 {[%emt 0:03:06]} Bd1 {[%emt 0:00:05]} 44. Rc6 {[%emt 0:00:05]} f5 {[%emt 0:02:06]} 45. Nc5 {[%emt 0:01:30]} Be5 {[%emt 0:02:45]} 46. f4 {[%emt 0:01:27]} Bg7 {[%emt 0:01:06]} 47. Kf2 {[%emt 0:02:06]} Re8 {[%emt 0:00:15]} 48. Bd5+ {[%emt 0:00:06]} Kh8 {[%emt 0:00:08]} 49. Ne6 {[%emt 0:00:05]} Bf6 {[%emt 0:00:35]} 50. Bf3 {[%emt 0:07:49]} Bxf3 {[%emt 0:00:10]} 51. Kxf3 {[%emt 0:00:01]} Ra8 {[%emt 0:00:43]} 52. Nc7 {[%emt 0:03:58]} Rc8 {[%emt 0:00:05]} 53. Rxf6 {[%emt 0:00:03]} Rxc7 {[%emt 0:00:05]} 54. Rxf5 {[%emt 0:00:13]} Rxc2 {[%emt 0:00:06]} 55. b3 {[%emt 0:01:53]} Rxa2 {[%emt 0:00:45]} 56. Rxb5 {[%emt 0:00:02]} Rd2 {[%emt 0:00:19]} 57. Ke4 {[%emt 0:00:08]} Rg2 {[%emt 0:00:03]} 58. Rxb4 {[%emt 0:00:05]} Rxg3 {[%emt 0:00:02]} 59. Rxd4 {[%emt 0:00:06]} Kg7 {[%emt 0:00:13]} 60. Rd7+ {[%emt 0:00:59]} Kf6 {[%emt 0:00:15]} 61. Rd6+ {[%emt 0:00:04]} Kg7 {[%emt 0:00:06]} 62. b4 {[%emt 0:00:32]} Rg1 {[%emt 0:01:01]} 63. b5 {[%emt 0:00:07]} Rb1 {[%emt 0:00:06]} 64. b6 {[%emt 0:00:03]} h5 {[%emt 0:00:04]} 65. Kf5 {[%emt 0:01:06]} Rb5+ {[%emt 0:00:09]} 66. Ke4 {[%emt 0:04:34]} h4 {[%emt 0:01:29]} 67. Kf3 {[%emt 0:00:09]} Rb4 {[%emt 0:01:02]} 68. f5 {[%emt 0:04:37]} Kf7 {[%emt 0:00:54]} 69. Kg2 {[%emt 0:01:43]} Ke7 {[%emt 0:03:41]} 70. Rh6 {[%emt 0:00:57]} Kf7 {[%emt 0:00:19]} 71. Kh3 {[%emt 0:00:53]} Kg7 {[%emt 0:02:35]} 72. Rd6 {[%emt 0:00:05]} Kf7 {[%emt 0:01:52]} 73. f6 {[%emt 0:00:23]} Rf4 {[%emt 0:01:07]} 74. d4 {[%emt 0:00:05]} Kg6 {[%emt 0:00:48]} 75. Rd8 {[%emt 0:01:52]} Rf3+ {[%emt 0:00:21]} 76. Kxh4 {[%emt 0:00:03]} Rb3 {[%emt 0:00:04]} 77. Rd6 {[%emt 0:00:07]} Kf7 {[%emt 0:00:03]} 78. Kg4 {[%emt 0:00:08]} Kg6 {[%emt 0:00:03]} 79. Kf4 {[%emt 0:00:05]} Kf7 {[%emt 0:00:04]} 80. Ke4 {[%emt 0:00:06]} Rb5 {[%emt 0:00:07]} 81. Kd3 {[%emt 0:00:07]} 1-0

[Event "POL-chT DMP Ekstraliga 2019"]
[Site "Katowice"]
[Date "2019.09.02"]
[Round "6.24"]
[White "Zawadzka, Jolanta"]
[Black "Majdan, Joanna"]
[Result "1-0"]
[ECO "B56"]
[WhiteElo "2407"]
[BlackElo "2368"]
[Annotator "NA"]
[PlyCount "97"]
[EventDate "2019.08.28"]
[EventType "team-tourn"]
[EventCountry "POL"]
[SourceTitle "playchess.com"]
[Source "ChessBase"]
[SourceQuality "1"]
[TimeControl "40/5400+30:1800+30"]

1. e4 {[%emt 0:00:00]} c5 {[%emt 0:00:00]} 2. Nf3 {[%emt 0:00:00]} d6 {[%emt 0:00:00]} 3. d4 {[%emt 0:00:00]} cxd4 {[%emt 0:00:00]} 4. Nxd4 {[%emt 0:00:00]} Nf6 {[%emt 0:00:01]} 5. Nc3 {[%emt 0:00:02]} Bd7 {[%emt 0:00:11]} 6. Bg5 {[%emt 0:00:57]} e6 {[%emt 0:00:06]} 7. Ndb5 {[%emt 0:00:54]} Bc6 {[%emt 0:00:08]} 8. Bxf6 {[%emt 0:00:38]} gxf6 {[%emt 0:00:06]} 9. Qh5 {[%emt 0:00:44]} a6 {[%emt 0:00:05]} 10. Nd4 {[%emt 0:00:15]} Bd7 {[%emt 0:00:07]} 11. O-O-O {[%emt 0:01:32]} Nc6 {[%emt 0:03:49]} 12. Nb3 {[%emt 0:00:54]} b5 {[%emt 0:00:17]} 13. f4 {[%emt 0:13:41]} Qb6 {[%emt 0:00:49]} 14. f5 {[%emt 0:15:47]} Qe3+ {[%emt 0:00:27]} 15. Kb1 {[%emt 0:00:17]} Qg5 {[%emt 0:00:05]} 16. Qe2 {[%emt 0:05:21]} Ne5 {[%emt 0:03:14]} 17. a3 {[%emt 0:07:32]} Be7 {[%emt 0:03:09]} 18. g3 {[%emt 0:03:53]} Qh6 {[%emt 0:07:17]} 19. h4 {[%emt 0:14:02]} Rg8 {[%emt 0:03:17]} 20. Rg1 {[%emt 0:00:39]} Rc8 {[%emt 0:06:26]} 21. Bh3 {[%emt 0:02:49]} Nc4 {[%emt 0:07:55]} 22. fxe6 {[%emt 0:01:17]} fxe6 {[%emt 0:04:14]} 23. Na2 {[%emt 0:00:17]} Qe3 {[%emt 0:04:27]} 24. Qg2 {[%emt 0:05:56]} Qh6 {[%emt 0:03:01]} 25. Nd4 {[%emt 0:02:26]} Qh5 {[%emt 0:00:31]} 26. Rde1 {[%emt 0:05:08]} Bd8 {[%emt 0:12:22]} 27. c3 {[%emt 0:04:04]} Bb6 {[%emt 0:00:45]} 28. Nb4 {[%emt 0:07:02]} a5 {[%emt 0:03:18]} 29. Nbc2 {[%emt 0:00:43]} Ke7 {[%emt 0:03:28]} 30. Rgf1 {[%emt 0:00:46]} Qe5 {[%emt 0:02:19]} 31. g4 {[%emt 0:00:42]} b4 {[%emt 0:03:00]} 32. Nf3 {[%emt 0:02:53]} Qb5 {[%emt 0:01:10]} 33. cxb4 {[%emt 0:02:16]} axb4 {[%emt 0:00:05]} 34. Nxb4 {[%emt 0:00:22]} Ne3 {[%emt 0:01:39]} 35. Qd2 {[%emt 0:00:27]} Nxf1 {[%emt 0:02:09]} 36. Bxf1 {[%emt 0:00:04]} Qc5 {[%emt 0:01:37]} 37. Qh6 {[%emt 0:00:25]} Rxg4 {[%emt 0:05:04]} 38. Qxh7+ {[%emt 0:00:10]} Kd8 {[%emt 0:00:23]} 39. Qh8+ {[%emt 0:01:53]} Ke7 {[%emt 0:00:11]} 40. Qh7+ {[%emt 0:00:00]} Kd8 {[%emt 0:00:00]} 41. Bh3 {[%emt 0:11:25]} Rg3 {[%emt 0:04:08]} 42. Nd5 {[%emt 0:01:34]} Rc6 {[%emt 0:06:28]} 43. Qh8+ {[%emt 0:03:09]} Be8 {[%emt 0:00:03]} 44. Qxf6+ {[%emt 0:00:18]} Kc8 {[%emt 0:00:02]} 45. Bxe6+ {[%emt 0:01:52]} Kb7 {[%emt 0:01:30]} 46. Qe7+ {[%emt 0:00:55]} Bc7 {[%emt 0:00:38]} 47. Qxe8 {[%emt 0:01:36]} Rxf3 {[%emt 0:06:51]} 48. Nb4 {[%emt 0:03:55]} Re3 {[%emt 0:04:25]} 49. Rxe3 {[%emt 0:01:11]} 1-0

[Event "POL-chT DMP Ekstraliga 2019"]
[Site "Katowice"]
[Date "2019.09.02"]
[Round "6.26"]
[White "Leniart, Arkadiusz"]
[Black "Czarnota, Pawel"]
[Result "1-0"]
[ECO "E62"]
[WhiteElo "2488"]
[BlackElo "2532"]
[Annotator "ChessBase"]
[PlyCount "69"]
[EventDate "2019.08.28"]
[EventType "team-tourn"]
[EventCountry "POL"]
[SourceTitle "playchess.com"]
[Source "ChessBase"]
[SourceQuality "1"]
[TimeControl "40/5400+30:1800+30"]

1. d4 {[%emt 0:00:00]} Nf6 {[%emt 0:00:00]} 2. c4 {[%emt 0:00:00]} g6 {[%emt 0:00:00]} 3. Nc3 {[%emt 0:00:00]} Bg7 {[%emt 0:00:00]} 4. Nf3 {[%emt 0:00:02]} O-O {[%emt 0:00:37]} 5. g3 {[%emt 0:00:19]} d6 {[%emt 0:01:08]} 6. Bg2 {[%emt 0:00:13]} Nc6 {[%emt 0:02:48]} 7. O-O {[%emt 0:01:44]} Bg4 {[%emt 0:00:16]} 8. h3 {[%emt 0:01:00]} Bxf3 {[%emt 0:00:14]} 9. Bxf3 {[%emt 0:00:05]} Nd7 {[%emt 0:00:14]} 10. e3 {[%emt 0:13:02]} e5 {[%emt 0:00:37]} 11. d5 {[%emt 0:00:04]} Ne7 {[%emt 0:00:20]} 12. e4 {[%emt 0:00:04]} f5 {[%emt 0:00:31]} 13. Kg2 {[%emt 0:00:04]} Nf6 {[%emt 0:02:53]} 14. Rb1 {[%emt 0:02:07]} f4 {[%emt 0:05:21]} 15. h4 {[%emt 0:03:51]} h5 {[%emt 0:01:15]} 16. b4 {[%emt 0:08:09]} Bh6 {[%emt 0:02:16]} 17. c5 {[%emt 0:02:19]} Kh7 {[%emt 0:00:20]} 18. Ne2 {[%emt 0:24:38]} Qd7 {[%emt 0:14:24]} 19. Rb3 {[%emt 0:12:38]} Ng4 {[%emt 0:07:20]} 20. gxf4 {[%emt 0:07:01]} Ng8 {[%emt 0:29:39]} 21. Bxg4 {[%emt 0:11:20]} Qxg4+ {[%emt 0:00:11]} 22. Rg3 {[%emt 0:00:07]} Qxh4 {[%emt 0:00:41]} 23. Rh1 {[%emt 0:00:32]} Qf6 {[%emt 0:00:08]} 24. f5 {[%emt 0:03:42]} gxf5 {[%emt 0:01:01]} 25. f4 {[%emt 0:03:36]} h4 {[%emt 0:02:56]} 26. Rgh3 {[%emt 0:02:18]} exf4 {[%emt 0:06:53]} 27. Nxf4 {[%emt 0:01:22]} fxe4 {[%emt 0:00:33]} 28. Rxh4 {[%emt 0:00:31]} Rf7 {[%emt 0:02:52]} 29. Qe2 {[%emt 0:01:41]} Rg7+ {[%emt 0:05:04]} 30. Kf1 {[%emt 0:00:22]} Re7 {[%emt 0:02:43]} 31. Bb2 {[%emt 0:01:04]} Qg5 {[%emt 0:03:36]} 32. Rg4 {[%emt 0:00:39]} Qf5 {[%emt 0:00:24]} 33. Qg2 {[%emt 0:00:16]} Qf8 {[%emt 0:02:52]} 34. Ke1 {[%emt 0:00:20]} e3 {[%emt 0:00:51]} 35. Qc2+ {[%emt 0:00:29]} 1-0